fUSD/lending_fUSD_20240524
["ID","MTS","AMOUNT","RATE_DAILY","PERIOD"]
[327888148,1716580264772,-585.16,0.00032328,5]
[327888149,1716580264782,-290.67,0.00032328,5]
[327888150,1716580264792,-370.73,0.00032328,5]
[327888151,1716580264803,-500.0,0.00032328,5]
[327888152,1716580264813,-500.0,0.00032328,5]
[327888153,1716580264826,-2498.14,0.00032328,5]
[327888154,1716580264835,-481.71,0.00032328,5]
[327888155,1716580264846,-643.55,0.00032328,5]
[327888156,1716580264857,-500.0,0.00032328,5]
[327888157,1716580264867,-500.0,0.00032328,5]
[327888158,1716580264876,-500.0,0.00032328,5]
[327888159,1716580264886,-500.0,0.00032328,5]
[327888160,1716580264899,-500.0,0.00032328,5]
[327888161,1716580264909,-500.0,0.00032328,5]
[327888162,1716580264918,-235.47,0.00032328,5]
[327888163,1716580264927,-500.0,0.00032328,5]
[327888164,1716580264937,-500.0,0.00032328,5]
[327888165,1716580264947,-500.0,0.00032328,5]
[327888166,1716580264959,-261.33594669,0.00032328,5]
[327888167,1716580264970,-500.0,0.00032328,5]
[327888168,1716580264980,-500.0,0.00032328,5]
[327888169,1716580264991,-500.0,0.00032328,5]
[327888170,1716580265000,-233.94,0.00032328,5]
[327888171,1716580265010,-500.0,0.00032328,5]
[327888172,1716580265020,-500.0,0.00032328,5]
[327888173,1716580265029,-642.71,0.00032328,5]
[327888174,1716580265039,-308.61,0.00032328,5]
[327888175,1716580265051,-527.38,0.00032328,5]
[327888176,1716580265060,-500.0,0.00032328,5]
[327888177,1716580265069,-500.0,0.00032328,5]
[327888178,1716580265078,-227.63,0.00032328,5]
[327888179,1716580265087,-500.0,0.00032328,5]
[327888180,1716580265099,-585.46283968,0.00032328,5]
[327888181,1716580265110,-889.21,0.00032328,5]
[327888182,1716580265121,-500.0,0.00032328,5]
[327888183,1716580265130,-500.0,0.00032328,5]
[327888184,1716580265139,-500.0,0.00032328,5]
[327888185,1716580265149,-500.0,0.00032328,5]
[327888186,1716580265158,-1339.48,0.00032328,5]
[327888187,1716580265167,-500.0,0.00032328,5]
[327888188,1716580265177,-500.0,0.00032328,5]
[327888189,1716580265187,-500.0,0.00032328,5]
[327888190,1716580265197,-500.0,0.00032328,5]
[327888191,1716580265206,-500.0,0.00032328,5]
[327888192,1716580265216,-589.12,0.00032328,5]
[327888193,1716580265226,-500.0,0.00032328,5]
[327888194,1716580265235,-500.0,0.00032328,5]
[327888195,1716580265245,-1681.42,0.00032328,5]
[327888196,1716580265254,-500.0,0.00032328,5]
[327888197,1716580265264,-500.0,0.00032328,5]
[327888198,1716580265274,-500.0,0.00032328,5]
[327888199,1716580265283,-500.0,0.00032328,5]
[327888200,1716580265293,-239.13,0.00032328,5]
[327888201,1716580265302,-500.0,0.00032328,5]
[327888202,1716580265311,-500.0,0.00032328,5]
[327888203,1716580265322,-500.0,0.00032328,2]
[327888204,1716580265332,-500.0,0.00032328,5]
[327888205,1716580265342,-500.0,0.00032328,5]
[327888206,1716580265351,-500.0,0.00032328,5]
[327888207,1716580265361,-500.0,0.00032328,5]
[327888208,1716580265371,-389.6057035,0.00032328,5]
[327888209,1716580265380,-3985.81,0.00032328,5]
[327888210,1716580265391,-500.0,0.00032328,5]
[327888211,1716580265400,-386.27,0.00032328,5]
[327888212,1716580265410,-957.13,0.00032328,5]
[327888213,1716580265420,-440.62,0.00032328,5]
[327888214,1716580265429,-500.0,0.00032328,5]
[327888215,1716580265439,-500.0,0.00032328,5]
[327888216,1716580265448,-500.0,0.00032328,5]
[327888217,1716580265459,-500.0,0.00032328,5]
[327888218,1716580265468,-407.7,0.00032328,5]
[327888219,1716580265478,-500.0,0.00032328,5]
[327888220,1716580265487,-309.23,0.00032328,5]
[327888221,1716580265497,-500.0,0.00032328,5]
[327888222,1716580265506,-500.0,0.00032328,5]
[327888223,1716580265516,-500.0,0.00032328,5]
[327888224,1716580265525,-500.0,0.00032328,5]
[327888225,1716580265535,-500.0,0.00032328,5]
[327888226,1716580265544,-500.0,0.00032328,5]
[327888227,1716580265554,-550.59,0.00032328,5]
[327888228,1716580265563,-500.0,0.00032328,5]
[327888229,1716580265574,-500.0,0.00032328,5]
[327888230,1716580265584,-500.0,0.00032328,5]
[327888231,1716580265593,-500.0,0.00032328,5]
[327888232,1716580265603,-256.77957567,0.00032328,5]
[327888233,1716580265612,-500.0,0.00032328,5]
[327888234,1716580265622,-500.0,0.00032328,5]
[327888235,1716580265632,-500.0,0.00032328,5]
[327888236,1716580265642,-500.0,0.00032328,5]
[327888237,1716580265651,-500.0,0.00032328,5]
[327888238,1716580265661,-2690.54,0.00032328,5]
[327888239,1716580265670,-981.3,0.00032328,5]
[327888240,1716580265680,-765.74,0.00032328,5]
[327888241,1716580265690,-500.0,0.00032328,5]
[327888242,1716580265699,-303.95,0.00032328,5]
[327888243,1716580265709,-500.0,0.00032328,5]
[327888244,1716580265718,-289.09722972,0.00032328,5]
[327888245,1716580265728,-500.0,0.00032328,5]
[327888246,1716580265737,-500.0,0.00032328,5]
[327888247,1716580265746,-500.0,0.00032328,5]
[327888248,1716580265756,-1006.75,0.00032328,5]
[327888249,1716580265765,-298.69676,0.00032328,5]
[327888250,1716580265774,-1344.33,0.00032328,5]
[327888251,1716580265784,-1178.9,0.00032328,5]
[327888252,1716580265794,-500.0,0.00032328,5]
[327888253,1716580265805,-500.0,0.00032328,5]
[327888254,1716580265820,-680.33,0.00032328,5]
[327888255,1716580265830,-500.0,0.00032328,5]
[327888256,1716580265840,-500.0,0.00032328,5]
[327888257,1716580265850,-500.0,0.00032328,5]
[327888258,1716580265862,-500.0,0.00032328,5]
[327888259,1716580265872,-1834.86,0.00032328,5]
[327888260,1716580265882,-252.58,0.00032328,5]
[327888261,1716580265892,-520.05,0.00032328,5]
[327888262,1716580265902,-500.0,0.00032328,5]
[327888263,1716580265912,-500.0,0.00032328,5]
[327888264,1716580265921,-4616.88,0.00032328,5]
[327888265,1716580265931,-155.49,0.00032328,5]
[327888266,1716580265940,-500.0,0.00032328,5]
[327888267,1716580265950,-500.0,0.00032328,5]
[327888268,1716580265959,-500.0,0.00032328,5]
[327888269,1716580265970,-500.0,0.00032328,5]
[327888270,1716580265980,-500.0,0.00032328,5]
[327888271,1716580265989,-913.32,0.00032328,5]
[327888272,1716580265999,-500.0,0.00032328,2]
[327888273,1716580266009,-500.0,0.00032328,5]
[327888274,1716580266019,-500.0,0.00032328,5]
[327888275,1716580266028,-500.0,0.00032328,5]
[327888276,1716580266038,-500.0,0.00032328,5]
[327888277,1716580266048,-500.0,0.00032328,5]
[327888278,1716580266058,-500.0,0.00032328,5]
[327888279,1716580266067,-500.0,0.00032328,5]
[327888280,1716580266078,-795.66,0.00032328,5]
[327888281,1716580266088,-500.0,0.00032328,5]
[327888282,1716580266098,-150.0,0.00032453,120]
[327888283,1716580266108,-8849.4642999,0.00032469,2]
[327888284,1716580266117,-371.4400115,0.00032469,2]
[327888285,1716580266126,-200.0,0.00032486,10]
[327888286,1716580266136,-500.0,0.00032486,10]
[327888287,1716580266146,-6103.1360419,0.00032491,4]
[327888288,1716580266155,-1099.77503,0.00032499,2]
[327888289,1716580266165,-161.0350808,0.00032558,2]
[327888290,1716580266175,-1177.3957923,0.0003258,2]
[327888291,1716580266185,-150.0,0.0003259,120]
[327888292,1716580266194,-500.0,0.00032602,5]
[327888293,1716580266204,-250.0,0.00032602,5]
[327888294,1716580266213,-500.0,0.00032602,5]
[327888295,1716580266222,-652.73,0.00032602,5]
[327888296,1716580266231,-500.0,0.00032602,5]
[327888297,1716580266242,-500.0,0.00032602,5]
[327888298,1716580266252,-235.07765287,0.00032602,5]
[327888299,1716580266262,-500.0,0.00032602,5]
[327888300,1716580266272,-217.74,0.00032602,5]
[327888301,1716580266281,-500.0,0.00032602,5]
[327888302,1716580266291,-561.59,0.00032602,5]
[327888303,1716580266301,-500.0,0.00032602,5]
[327888304,1716580266310,-567.54,0.00032602,5]
[327888305,1716580266320,-500.0,0.00032602,5]
[327888306,1716580266330,-2498.14,0.00032602,5]
[327888307,1716580266460,-482.51065324,0.00032602,5]
[327888308,1716580266470,-500.0,0.00032602,5]
[327888309,1716580266479,-500.0,0.00032602,5]
[327888310,1716580266488,-249.96,0.00032602,5]
[327888311,1716580266498,-500.0,0.00032602,5]
[327888312,1716580266508,-500.0,0.00032602,5]
[327888313,1716580266517,-500.0,0.00032602,5]
[327888314,1716580266526,-500.0,0.00032602,5]
[327888315,1716580266535,-500.0,0.00032602,5]
[327888316,1716580266545,-600.9,0.00032602,5]
[327888317,1716580266554,-500.0,0.00032602,5]
[327888318,1716580266564,-341.77,0.00032602,5]
[327888319,1716580266575,-500.0,0.00032602,5]
[327888320,1716580266584,-642.71,0.00032602,5]
[327888321,1716580266593,-179.4,0.00032602,5]
[327888322,1716580266603,-250.19,0.00032602,5]
[327888323,1716580266613,-500.0,0.00032602,5]
[327888324,1716580266622,-889.21,0.00032602,5]
[327888325,1716580266631,-500.0,0.00032602,5]
[327888326,1716580266641,-500.0,0.00032602,5]
[327888327,1716580266651,-500.0,0.00032602,5]
[327888328,1716580266661,-500.0,0.00032602,5]
[327888329,1716580266670,-1339.48,0.00032602,5]
[327888330,1716580266680,-500.0,0.00032602,5]
[327888331,1716580266690,-500.0,0.00032602,5]
[327888332,1716580266700,-500.0,0.00032602,5]
[327888333,1716580266710,-324.98,0.00032602,5]
[327888334,1716580266720,-381.74,0.00032602,5]
[327888335,1716580266730,-589.12,0.00032602,5]
[327888336,1716580266739,-500.0,0.00032602,5]
[327888337,1716580266749,-500.0,0.00032602,5]
[327888338,1716580266759,-1681.42,0.00032602,5]
[327888339,1716580266768,-500.0,0.00032602,5]
[327888340,1716580266778,-500.0,0.00032602,5]
[327888341,1716580266788,-500.0,0.00032602,5]
[327888342,1716580266798,-500.0,0.00032602,5]
[327888343,1716580266808,-238.0,0.00032602,5]
[327888344,1716580266820,-500.0,0.00032602,5]
[327888345,1716580266832,-500.0,0.00032602,5]
[327888346,1716580266841,-500.0,0.00032602,5]
[327888347,1716580266852,-500.0,0.00032602,5]
[327888348,1716580266862,-500.0,0.00032602,5]
[327888349,1716580266872,-3985.81,0.00032602,5]
[327888350,1716580266882,-500.0,0.00032602,5]
[327888351,1716580266893,-957.13,0.00032602,5]
[327888352,1716580266905,-500.0,0.00032602,5]
[327888353,1716580266915,-500.0,0.00032602,5]
[327888354,1716580266925,-500.0,0.00032602,5]
[327888355,1716580266935,-500.0,0.00032602,5]
[327888356,1716580266945,-500.0,0.00032602,5]
[327888357,1716580266955,-500.0,0.00032602,5]
[327888358,1716580266965,-500.0,0.00032602,5]
[327888359,1716580266974,-500.0,0.00032602,5]
[327888360,1716580266984,-500.0,0.00032602,5]
[327888361,1716580266993,-500.0,0.00032602,5]
[327888362,1716580267003,-500.0,0.00032602,5]
[327888363,1716580267012,-550.59,0.00032602,5]
[327888364,1716580267022,-359.05,0.00032602,5]
[327888365,1716580267032,-500.0,0.00032602,5]
[327888366,1716580267042,-500.0,0.00032602,5]
[327888367,1716580267052,-180.33,0.00032602,5]
[327888368,1716580267062,-500.0,0.00032602,5]
[327888369,1716580267074,-500.0,0.00032602,5]
[327888370,1716580267084,-500.0,0.00032602,5]
[327888371,1716580267093,-500.0,0.00032602,5]
[327888372,1716580267103,-2690.54,0.00032602,5]
[327888373,1716580267114,-981.3,0.00032602,5]
[327888374,1716580267123,-765.74,0.00032602,5]
[327888375,1716580267133,-281.57977784,0.00032602,5]
[327888376,1716580267143,-500.0,0.00032602,5]
[327888377,1716580267153,-500.0,0.00032602,5]
[327888378,1716580267162,-640.86,0.00032602,5]
[327888379,1716580267172,-500.0,0.00032602,5]
[327888380,1716580267182,-1006.75,0.00032602,5]
[327888381,1716580267191,-1344.33,0.00032602,5]
[327888382,1716580267201,-1178.9,0.00032602,5]
[327888383,1716580267212,-500.0,0.00032602,5]
[327888384,1716580267222,-500.0,0.00032602,5]
[327888385,1716580267231,-680.33,0.00032602,5]
[327888386,1716580267241,-500.0,0.00032602,5]
[327888387,1716580267251,-500.0,0.00032602,5]
[327888388,1716580267261,-500.0,0.00032602,5]
[327888389,1716580267271,-500.0,0.00032602,5]
[327888390,1716580267281,-1834.86,0.00032602,5]
[327888391,1716580267291,-520.05,0.00032602,5]
[327888392,1716580267301,-614.92,0.00032602,5]
[327888393,1716580267311,-500.0,0.00032602,5]
[327888394,1716580267323,-4616.88,0.00032602,5]
[327888395,1716580267333,-500.0,0.00032602,5]
[327888396,1716580267343,-227.78431178,0.00032602,5]
[327888397,1716580267352,-500.0,0.00032602,5]
[327888398,1716580267362,-500.0,0.00032602,5]
[327888399,1716580267372,-500.0,0.00032602,5]
[327888400,1716580267381,-913.32,0.00032602,5]
[327888401,1716580267390,-500.0,0.00032602,2]
[327888402,1716580267400,-500.0,0.00032602,5]
[327888403,1716580267410,-500.0,0.00032602,5]
[327888404,1716580267420,-500.0,0.00032602,5]
[327888405,1716580267430,-500.0,0.00032602,5]
[327888406,1716580267439,-500.0,0.00032602,5]
[327888407,1716580267449,-500.0,0.00032602,5]
[327888408,1716580267459,-500.0,0.00032602,5]
[327888409,1716580267471,-795.66,0.00032602,5]
[327888410,1716580267481,-428.08480058,0.00032647,5]
[327888411,1716580267491,-428.08480055,0.00032647,5]
[327888412,1716580267500,-428.08480055,0.00032647,5]
[327888413,1716580267510,-428.08480055,0.00032647,5]
[327888414,1716580267519,-428.08480055,0.00032647,5]
[327888415,1716580267529,-428.08480055,0.00032647,5]
[327888416,1716580267539,-428.08480055,0.00032647,5]
[327888417,1716580267548,-428.08480055,0.00032647,5]
[327888418,1716580267558,-428.08480055,0.00032647,5]
[327888419,1716580267568,-428.08480055,0.00032647,5]
[327888420,1716580267584,-428.08480055,0.00032647,5]
[327888421,1716580267593,-428.08480055,0.00032647,5]
[327888422,1716580267602,-428.08480055,0.00032647,5]
[327888423,1716580267612,-2732.27093982,0.00032798,21]
[327888424,1716580267620,-1064.274891,0.000328,2]
[327888425,1716580267630,-589.01650693,0.00032876,5]
[327888426,1716580267638,-250.0,0.00032876,5]
[327888427,1716580267647,-525.01,0.00032876,5]
[327888428,1716580267656,-652.73,0.00032876,5]
[327888429,1716580267665,-500.0,0.00032876,5]
[327888430,1716580267674,-500.0,0.00032876,5]
[327888431,1716580267683,-500.0,0.00032876,5]
[327888432,1716580267692,-500.0,0.00032876,5]
[327888433,1716580267701,-500.0,0.00032876,5]
[327888434,1716580267711,-500.0,0.00032876,5]
[327888435,1716580267720,-2498.14,0.00032876,5]
[327888436,1716580267730,-500.0,0.00032876,5]
[327888437,1716580267739,-500.0,0.00032876,5]
[327888438,1716580267748,-500.0,0.00032876,5]
[327888439,1716580267758,-500.0,0.00032876,5]
[327888440,1716580267767,-500.0,0.00032876,5]
[327888441,1716580267776,-500.0,0.00032876,5]
[327888442,1716580267787,-204.53283709,0.00032876,5]
[327888443,1716580267796,-500.0,0.00032876,5]
[327888444,1716580267808,-642.71,0.00032876,5]
[327888445,1716580267823,-500.0,0.00032876,5]
[327888446,1716580267833,-889.21,0.00032876,5]
[327888447,1716580267842,-500.0,0.00032876,5]
[327888448,1716580267851,-500.0,0.00032876,5]
[327888449,1716580267862,-501.33,0.00032876,5]
[327888450,1716580267872,-500.0,0.00032876,5]
[327888451,1716580267881,-1339.48,0.00032876,5]
[327888452,1716580267893,-500.0,0.00032876,5]
[327888453,1716580267903,-500.0,0.00032876,5]
[327888454,1716580267913,-500.0,0.00032876,5]
[327888455,1716580267922,-589.12,0.00032876,5]
[327888456,1716580267931,-275.92,0.00032876,5]
[327888457,1716580267942,-500.0,0.00032876,5]
[327888458,1716580267953,-1681.42,0.00032876,5]
[327888459,1716580267964,-257.01,0.00032876,5]
[327888460,1716580267974,-500.0,0.00032876,5]
[327888461,1716580267983,-500.0,0.00032876,5]
[327888462,1716580267994,-500.0,0.00032876,5]
[327888463,1716580268003,-500.0,0.00032876,5]
[327888464,1716580268017,-500.0,0.00032876,5]
[327888465,1716580268027,-500.0,0.00032876,5]
[327888466,1716580268037,-500.0,0.00032876,5]
[327888467,1716580268047,-500.0,0.00032876,5]
[327888468,1716580268056,-3985.81,0.00032876,5]
[327888469,1716580268066,-500.0,0.00032876,5]
[327888470,1716580268079,-957.13,0.00032876,5]
[327888471,1716580268088,-500.0,0.00032876,5]
[327888472,1716580268097,-500.0,0.00032876,5]
[327888473,1716580268106,-500.0,0.00032876,5]
[327888474,1716580268115,-180.72,0.00032876,5]
[327888475,1716580268124,-500.0,0.00032876,5]
[327888476,1716580268134,-165.3125441,0.00032876,5]
[327888477,1716580268142,-500.0,0.00032876,5]
[327888478,1716580268151,-561.13855594,0.00032876,5]
[327888479,1716580268161,-500.0,0.00032876,5]
[327888480,1716580268170,-500.0,0.00032876,5]
[327888481,1716580268179,-500.0,0.00032876,5]
[327888482,1716580268189,-550.59,0.00032876,5]
[327888483,1716580268198,-500.0,0.00032876,5]
[327888484,1716580268208,-500.0,0.00032876,5]
[327888485,1716580268218,-500.0,0.00032876,5]
[327888486,1716580268227,-500.0,0.00032876,5]
[327888487,1716580268236,-500.0,0.00032876,5]
[327888488,1716580268245,-500.0,0.00032876,5]
[327888489,1716580268255,-2690.54,0.00032876,5]
[327888490,1716580268265,-981.3,0.00032876,5]
[327888491,1716580268274,-765.74,0.00032876,5]
[327888492,1716580268283,-500.0,0.00032876,5]
[327888493,1716580268293,-500.0,0.00032876,5]
[327888494,1716580268302,-191.78276265,0.00032876,5]
[327888495,1716580268312,-1006.75,0.00032876,5]
[327888496,1716580268323,-1344.33,0.00032876,5]
[327888497,1716580268332,-1178.9,0.00032876,5]
[327888498,1716580268342,-500.0,0.00032876,5]
[327888499,1716580268351,-680.33,0.00032876,5]
[327888500,1716580268361,-500.0,0.00032876,5]
[327888501,1716580268370,-500.0,0.00032876,5]
[327888502,1716580268380,-500.0,0.00032876,5]
[327888503,1716580268389,-377.76,0.00032876,5]
[327888504,1716580268399,-1834.86,0.00032876,5]
[327888505,1716580268408,-520.05,0.00032876,5]
[327888506,1716580268418,-500.0,0.00032876,5]
[327888507,1716580268427,-4616.88,0.00032876,5]
[327888508,1716580268436,-500.0,0.00032876,5]
[327888509,1716580268446,-500.0,0.00032876,5]
[327888510,1716580268455,-500.0,0.00032876,5]
[327888511,1716580268465,-537.09,0.00032876,5]
[327888512,1716580268474,-220.07744954,0.00032876,2]
[327888513,1716580268483,-913.32,0.00032876,5]
[327888514,1716580268492,-500.0,0.00032876,5]
[327888515,1716580268502,-500.0,0.00032876,5]
[327888516,1716580268511,-500.0,0.00032876,5]
[327888517,1716580268520,-500.0,0.00032876,5]
[327888518,1716580268529,-500.0,0.00032876,5]
[327888519,1716580268538,-552.26,0.00032876,5]
[327888520,1716580268548,-500.0,0.00032876,5]
[327888521,1716580268556,-795.66,0.00032876,5]
[327888522,1716580268565,-11113.44,0.00032877,2]
[327888523,1716580268576,-276.47627405,0.000329,30]
[327888524,1716580268585,-13196.99077039,0.000329,30]
[327888525,1716580268593,-151.19086023,0.00032911,7]
[327888526,1716580268603,-155.0,0.00033,4]
[327888527,1716580268611,-10423.0,0.00033,7]
[327888528,1716580268621,-165.0,0.00033,10]
[327888529,1716580268630,-300.0,0.00033,2]
[327888530,1716580268639,-382.52,0.00033092,2]
[327888531,1716580268648,-250.0,0.0003315,5]
[327888532,1716580268657,-151.0,0.0003315,7]
[327888533,1716580268666,-292.921876,0.0003315,7]
[327888534,1716580268675,-652.73,0.0003315,5]
[327888535,1716580268684,-500.0,0.0003315,5]
[327888536,1716580268693,-500.0,0.0003315,5]
[327888537,1716580268702,-151.988256,0.0003315,7]
[327888538,1716580268711,-151.988256,0.0003315,7]
[327888539,1716580268720,-151.0,0.0003315,7]
[327888540,1716580268729,-218.96,0.0003315,5]
[327888541,1716580268738,-151.0,0.0003315,7]
[327888542,1716580268747,-555.99,0.0003315,5]
[327888543,1716580268757,-151.0,0.0003315,7]
[327888544,1716580268766,-151.0,0.0003315,7]
[327888545,1716580268775,-151.0,0.0003315,7]
[327888546,1716580268784,-151.0,0.0003315,7]
[327888547,1716580268794,-151.0,0.0003315,7]
[327888548,1716580268805,-151.0,0.0003315,7]
[327888549,1716580268814,-151.0,0.0003315,7]
[327888550,1716580268829,-500.0,0.0003315,5]
[327888551,1716580268838,-2498.14,0.0003315,5]
[327888552,1716580268847,-151.0,0.0003315,7]
[327888553,1716580268857,-151.0,0.0003315,7]
[327888554,1716580268866,-500.0,0.0003315,5]
[327888555,1716580268876,-155.836293,0.0003315,7]
[327888556,1716580268886,-500.0,0.0003315,5]
[327888557,1716580268899,-151.0,0.0003315,7]
[327888558,1716580268908,-151.0,0.0003315,7]
[327888559,1716580268917,-151.0,0.0003315,7]
[327888560,1716580268927,-151.0,0.0003315,7]
[327888561,1716580268936,-151.0,0.0003315,7]
[327888562,1716580268946,-168.899479,0.0003315,7]
[327888563,1716580268956,-151.0,0.0003315,7]
[327888564,1716580268966,-151.0,0.0003315,7]
[327888565,1716580268975,-151.0,0.0003315,7]
[327888566,1716580268986,-389.84104791,0.0003315,5]
[327888567,1716580268995,-151.0,0.0003315,7]
[327888568,1716580269006,-425.81,0.0003315,5]
[327888569,1716580269016,-254.920576,0.0003315,7]
[327888570,1716580269026,-500.0,0.0003315,5]
[327888571,1716580269035,-254.920576,0.0003315,7]
[327888572,1716580269044,-151.0,0.0003315,7]
[327888573,1716580269053,-298.840731,0.0003315,7]
[327888574,1716580269062,-151.0,0.0003315,7]
[327888575,1716580269073,-151.0,0.0003315,7]
[327888576,1716580269083,-151.0,0.0003315,7]
[327888577,1716580269092,-401.17118526,0.0003315,5]
[327888578,1716580269102,-642.71,0.0003315,5]
[327888579,1716580269111,-500.0,0.0003315,5]
[327888580,1716580269120,-151.0,0.0003315,7]
[327888581,1716580269130,-889.21,0.0003315,5]
[327888582,1716580269139,-500.0,0.0003315,5]
[327888583,1716580269148,-151.0,0.0003315,7]
[327888584,1716580269157,-500.0,0.0003315,5]
[327888585,1716580269166,-500.0,0.0003315,5]
[327888586,1716580269175,-1339.48,0.0003315,5]
[327888587,1716580269304,-500.0,0.0003315,5]
[327888588,1716580269314,-351.87,0.0003315,5]
[327888589,1716580269326,-151.0,0.0003315,7]
[327888590,1716580269335,-500.0,0.0003315,5]
[327888591,1716580269345,-589.12,0.0003315,5]
[327888592,1716580269354,-500.0,0.0003315,5]
[327888593,1716580269363,-1681.42,0.0003315,5]
[327888594,1716580269373,-571.25,0.0003315,5]
[327888595,1716580269383,-500.0,0.0003315,5]
[327888596,1716580269392,-500.0,0.0003315,5]
[327888597,1716580269402,-151.0,0.0003315,7]
[327888598,1716580269411,-151.0,0.0003315,7]
[327888599,1716580269421,-500.0,0.0003315,5]
[327888600,1716580269431,-151.0,0.0003315,7]
[327888601,1716580269441,-500.0,0.0003315,5]
[327888602,1716580269452,-500.0,0.0003315,5]
[327888603,1716580269461,-500.0,0.0003315,5]
[327888604,1716580269471,-151.0,0.0003315,7]
[327888605,1716580269481,-500.0,0.0003315,5]
[327888606,1716580269490,-188.349215,0.0003315,7]
[327888607,1716580269500,-3985.81,0.0003315,5]
[327888608,1716580269510,-500.0,0.0003315,5]
[327888609,1716580269520,-188.349215,0.0003315,7]
[327888610,1716580269529,-151.0,0.0003315,7]
[327888611,1716580269539,-957.13,0.0003315,5]
[327888612,1716580269548,-500.0,0.0003315,5]
[327888613,1716580269558,-500.0,0.0003315,5]
[327888614,1716580269568,-500.0,0.0003315,5]
[327888615,1716580269579,-628.67,0.0003315,5]
[327888616,1716580269588,-156.826648,0.0003315,7]
[327888617,1716580269597,-151.0,0.0003315,7]
[327888618,1716580269606,-500.0,0.0003315,5]
[327888619,1716580269615,-500.0,0.0003315,5]
[327888620,1716580269625,-500.0,0.0003315,5]
[327888621,1716580269635,-500.0,0.0003315,5]
[327888622,1716580269644,-550.59,0.0003315,5]
[327888623,1716580269654,-151.0,0.0003315,7]
[327888624,1716580269663,-151.0,0.0003315,7]
[327888625,1716580269673,-500.0,0.0003315,5]
[327888626,1716580269683,-500.0,0.0003315,5]
[327888627,1716580269693,-151.0,0.0003315,7]
[327888628,1716580269702,-500.0,0.0003315,5]
[327888629,1716580269711,-500.0,0.0003315,5]
[327888630,1716580269720,-500.0,0.0003315,5]
[327888631,1716580269729,-500.0,0.0003315,5]
[327888632,1716580269739,-2690.54,0.0003315,5]
[327888633,1716580269748,-981.3,0.0003315,5]
[327888634,1716580269757,-765.74,0.0003315,5]
[327888635,1716580269767,-500.0,0.0003315,5]
[327888636,1716580269777,-500.0,0.0003315,5]
[327888637,1716580269787,-1006.75,0.0003315,5]
[327888638,1716580269796,-231.480487,0.0003315,7]
[327888639,1716580269806,-1344.33,0.0003315,5]
[327888640,1716580269820,-1178.9,0.0003315,5]
[327888641,1716580269830,-500.0,0.0003315,5]
[327888642,1716580269839,-680.33,0.0003315,5]
[327888643,1716580269848,-500.0,0.0003315,5]
[327888644,1716580269859,-500.0,0.0003315,5]
[327888645,1716580269868,-2300.449256,0.0003315,7]
[327888646,1716580269877,-1834.86,0.0003315,5]
[327888647,1716580269887,-151.0,0.0003315,7]